bitfinex/quotes_ETHUSD_20251023
["timestamp","ask_amount","ask_price","bid_price","bid_amount"]
[1761230910117,0.6763,3846.9,3846.6,2.59965241]
[1761230910442,0.4473,3846.8,3846.6,2.59965241]
[1761230910950,0.229,3846.9,3846.7,2.59959177]
[1761230911247,0.229,3846.9,3846.8,2.59956327]
[1761230911447,3.381,3847.1,3847.0,2.59942812]
[1761230911933,0.001,3847.3,3847.2,2.59929299]
[1761230912348,0.001,3847.7,3847.6,2.59902276]
[1761230912524,0.001,3847.7,3847.6,5.98002276]
[1761230912728,0.001,3847.7,3847.6,6.03212276]
[1761230912928,0.001,3847.7,3847.6,6.94593882]
[1761230913348,0.001,3847.7,3847.6,6.89383882]
[1761230913551,0.001,3848.1,3848.0,2.59875259]
[1761230913768,0.001,3848.1,3848.0,3.10563259]
[1761230914057,0.001,3848.1,3848.0,3.15773259]
[1761230914360,0.001,3848.1,3848.0,3.68128959]
[1761230915670,0.001,3848.1,3848.0,3.73338959]
[1761230916359,0.0002,3848.1,3848.0,3.73338959]
[1761230916674,0.0002,3848.1,3848.0,7.06128959]
[1761230916875,0.0002,3848.1,3848.0,7.11338959]
[1761230917160,1.2663,3849.6,3848.4,0.50688]
[1761230917317,1.2663,3849.6,3849.4,2.5978051]
[1761230917750,0.1296,3849.5,3849.4,2.5978051]
[1761230918566,0.1296,3849.5,3849.2,2.59790588]
[1761230918785,0.1296,3849.3,3849.2,2.59790265]
[1761230920252,0.1296,3849.3,3849.1,2.59794255]
[1761230920471,0.4473,3849.2,3849.0,2.59804921]
[1761230920784,0.1296,3849.3,3849.2,2.59794242]
[1761230921681,0.1296,3849.3,3849.1,2.59799225]
[1761230921682,0.5769,3849.3,3849.1,2.59799225]
[1761230922100,0.4473,3849.2,3848.5,0.46606975]
[1761230922396,0.4473,3849.2,3849.1,2.59800992]
[1761230922601,0.4473,3849.2,3848.9,2.59813179]
[1761230922602,0.1296,3849.1,3848.9,2.59813179]
[1761230923091,0.4473,3849.0,3848.7,0.50688]
[1761230923487,0.4473,3849.0,3848.8,2.59821242]
[1761230923667,0.233,3848.9,3848.8,2.59821242]
[1761230923856,0.233,3848.9,3848.2,3.378]
[1761230923857,0.233,3848.9,3847.1,0.1042]
[1761230924085,0.1296,3847.9,3847.2,2.59929299]
[1761230924286,0.1296,3847.9,3847.4,2.59913768]
[1761230924462,0.1296,3847.9,3847.3,2.59916116]
[1761230924463,0.6803,3847.8,3847.3,2.59916116]
[1761230924653,0.4473,3847.7,3847.2,2.59923972]
[1761230924858,0.4473,3847.7,3847.4,2.59914718]
[1761230924859,0.5769,3847.7,3847.4,2.59914718]
[1761230925060,0.1296,3847.7,3847.3,2.59922543]
[1761230925284,0.1296,3847.7,3847.6,2.59902276]
[1761230925589,0.1296,3848.1,3847.9,2.59879222]
[1761230925789,0.6803,3848.9,3848.2,2.5985784]
[1761230926001,1.5993,3848.8,3847.9,0.27283922]
[1761230926310,2.59839185,3848.6,3847.8,2.59888126]
[1761230926524,0.4473,3848.5,3847.9,2.59877149]
[1761230926703,0.4473,3848.5,3848.0,2.59874818]
[1761230926901,0.4473,3848.5,3847.9,2.59881339]
[1761230927085,0.4473,3848.5,3847.4,0.50688]
[1761230927288,3.04576618,3848.5,3847.6,3.10589793]
[1761230927620,0.4473,3848.5,3847.3,0.50688]
[1761230927808,0.4473,3848.4,3847.7,2.59895061]
[1761230927995,3.04583535,3848.4,3847.7,2.59895061]
[1761230928196,2.59855006,3848.3,3847.7,2.59895061]
[1761230928518,0.4473,3848.3,3847.8,2.5988212]
[1761230928724,2.59841523,3848.5,3847.9,2.90599539]
[1761230928947,0.4473,3848.3,3847.9,2.59881277]
[1761230929172,0.4473,3848.3,3847.7,2.59889747]
[1761230929313,1.152,3848.8,3847.4,2.59915787]
[1761230929513,0.4473,3848.7,3848.1,2.59866575]
[1761230929811,0.4473,3848.7,3847.5,0.50688]
[1761230929812,0.4473,3848.7,3848.2,2.59859497]
[1761230930054,3.04558309,3848.7,3848.0,2.59874712]
[1761230930253,2.59836363,3848.6,3847.9,2.59879898]
[1761230930423,3.04566363,3848.6,3847.9,2.59879898]
[1761230930819,2.59841601,3848.5,3847.6,3.10589664]
[1761230931018,2.59841601,3848.5,3847.8,0.50688]
[1761230931226,2.59850979,3848.4,3847.8,3.10572308]
[1761230931620,2.59850979,3848.4,3847.8,3.1057602]
[1761230932663,2.59856487,3848.3,3847.8,0.50688]
[1761230932846,3.0457942,3848.4,3847.8,0.50688]
[1761230933061,2.5984942,3848.4,3847.8,0.50688]
[1761230933426,3.04574068,3848.5,3847.8,3.10574293]
[1761230933628,2.59844068,3848.5,3847.9,2.59880947]
[1761230933845,2.59844068,3848.5,3847.8,3.7077993]
[1761230934049,2.59850278,3848.4,3847.8,3.10574413]
[1761230934359,3.04580278,3848.4,3847.8,3.10574413]
[1761230934734,0.4473,3848.4,3847.7,3.10581444]
[1761230935026,3.04583031,3848.4,3847.9,0.50688]
[1761230935230,0.4473,3848.4,3847.9,0.50688]
[1761230935430,0.4473,3848.4,3847.3,0.002]
[1761230935431,0.4473,3848.3,3847.3,0.002]
[1761230935630,0.4473,3848.3,3847.5,2.59908704]
[1761230935832,0.1296,3847.8,3847.5,2.59908704]
[1761230936443,0.1296,3847.8,3847.4,3.10603378]
[1761230936644,0.1296,3847.8,3847.5,3.20877425]
[1761230937548,0.1296,3847.8,3847.6,2.5990115]
[1761230937749,0.1296,3847.8,3847.5,0.60968454]
[1761230937750,0.6803,3848.9,3847.8,0.50688]
[1761230938050,0.1296,3848.3,3847.8,0.1296]
[1761230938248,0.1296,3848.3,3848.0,0.50688]
[1761230938618,0.1296,3848.3,3848.1,0.50688]
[1761230938842,0.1296,3848.3,3848.1,3.10554398]
[1761230939245,0.1296,3848.3,3848.1,0.50688]
[1761230940044,0.6016,3848.3,3848.1,0.50688]
[1761230940241,0.1296,3848.3,3848.2,3.10549753]
[1761230940554,0.70023468,3849.8,3848.9,2.59809924]
[1761230940555,0.472,3849.4,3848.9,2.59809924]
[1761230940847,3.07078747,3849.5,3848.8,2.59820251]
[1761230941018,0.472,3849.4,3848.5,0.50688]
[1761230941213,0.2323,3848.6,3847.2,0.25992397]
[1761230941421,3.377,3848.5,3846.9,0.0541]
[1761230941642,2.59891685,3847.8,3846.9,0.0541]
[1761230941951,0.2323,3847.4,3846.9,0.002]
[1761230942358,3.30345787,3847.4,3846.9,0.002]
[1761230943572,3.86128371,3847.4,3846.9,0.002]
[1761230944020,3.30345787,3847.4,3846.9,0.002]
[1761230944629,6.68045787,3847.4,3846.9,0.002]
[1761230945656,0.2323,3847.4,3846.9,0.002]
[1761230945855,3.849,3847.4,3846.9,0.002]
[1761230946217,6.44815787,3847.4,3846.9,0.002]
[1761230946552,3.377,3847.4,3846.9,0.002]
[1761230946851,3.377,3847.4,3847.2,2.59928833]
[1761230947438,3.377,3847.4,3847.3,4.92343426]
[1761230947652,0.472,3848.3,3847.5,0.50688]
[1761230947857,3.377,3848.2,3847.4,0.50688]
[1761230948241,3.377,3848.2,3847.3,2.06408]
[1761230948551,3.377,3848.2,3847.9,2.59876722]
[1761230948751,0.001,3848.3,3847.5,0.50688]
[1761230948962,3.377,3848.2,3848.1,2.59867117]
[1761230949161,3.377,3848.2,3848.0,2.598733]
[1761230949340,0.472,3848.1,3847.7,3.10578096]
[1761230949544,0.472,3848.1,3847.7,0.50688]
[1761230949756,0.472,3848.1,3847.8,2.59884201]
[1761230949931,0.472,3848.1,3847.9,2.59881782]
[1761230950136,0.472,3848.1,3847.7,2.59890391]
[1761230950337,0.472,3848.1,3847.7,0.25989039]
[1761230950555,3.377,3848.2,3847.9,2.59876463]
[1761230950761,0.1296,3848.0,3847.9,2.59876463]
[1761230952063,0.1296,3848.0,3847.8,2.59884685]
[1761230952266,3.849,3848.2,3847.3,0.002]
[1761230952477,0.1296,3847.7,3847.6,2.59902276]
[1761230952770,0.1296,3848.0,3847.6,0.52001742]
[1761230953068,0.1296,3848.0,3847.9,2.59880673]
[1761230953270,0.1306,3848.3,3848.1,2.5986615]
[1761230953476,3.376,3848.0,3847.9,2.59882013]
[1761230953664,3.5056,3848.0,3847.9,2.59882013]
[1761230954347,3.9776,3848.0,3847.8,2.59887042]
[1761230954548,0.7043,3847.9,3847.8,2.59887042]
[1761230955059,0.2323,3847.9,3847.7,2.59894141]
[1761230955266,0.2323,3847.9,3847.4,0.1296]
[1761230955267,0.472,3847.8,3847.4,0.50688]
[1761230955447,0.472,3847.8,3847.5,2.59908014]
[1761230955639,0.1296,3847.6,3847.5,2.59908014]
[1761230956172,0.472,3848.4,3847.5,0.50688]
[1761230956380,3.848,3848.2,3847.5,0.50688]
[1761230956549,0.1296,3847.8,3847.7,2.59895284]
[1761230957052,0.6016,3847.8,3847.3,0.50888]
[1761230957255,3.376,3847.7,3847.3,0.002]
[1761230957571,0.1296,3847.4,3847.3,0.002]
[1761230957975,0.6016,3847.4,3847.3,0.002]
[1761230959148,0.1296,3847.4,3847.3,0.002]
[1761230959372,0.1296,3847.4,3847.3,2.60122543]
[1761230959586,3.5056,3847.4,3847.3,2.60122543]
[1761230960489,3.376,3847.4,3847.3,2.60122543]
[1761230960847,3.376,3847.4,3847.3,0.002]
[1761230961193,3.376,3847.4,3847.3,2.60122543]
[1761230962284,3.376,3847.4,3847.3,0.002]
[1761230962587,3.848,3847.4,3847.3,0.002]
[1761230962878,3.848,3847.4,3847.3,2.60122543]
[1761230963250,3.376,3847.4,3847.3,2.60122543]
[1761230964865,3.376,3847.4,3847.3,0.002]
[1761230965184,3.8472,3847.4,3847.3,0.002]
[1761230965988,3.8472,3847.4,3847.3,2.60122543]
[1761230966509,3.8472,3847.4,3847.3,0.002]
[1761230966925,6.44635787,3847.4,3847.3,0.002]
[1761230967717,2.59942812,3847.0,3846.9,0.002]
[1761230967874,2.59942812,3847.0,3845.6,0.002]
[1761230967875,3.375,3847.0,3845.6,0.002]
[1761230968072,2.59978477,3846.5,3845.6,0.002]
[1761230968275,3.375,3846.4,3845.6,0.002]
[1761230968509,3.375,3846.3,3845.6,0.50888]
[1761230968702,3.375,3846.2,3846.1,2.6000364]
[1761230969096,3.375,3846.6,3846.5,2.59976602]
[1761230970325,3.5046,3846.6,3846.5,2.59976602]
[1761230970632,3.9759,3846.6,3845.7,1.5552]
[1761230970807,3.375,3846.6,3846.4,2.59983337]
[1761230971013,0.1296,3846.2,3845.8,0.9228348]
[1761230971243,0.1296,3846.2,3846.1,2.6000364]
[1761230971536,3.5046,3846.2,3846.1,2.6000364]
[1761230972943,3.5046,3846.2,3845.8,3.52305704]
[1761230973097,3.5046,3846.2,3845.9,1.5552]
[1761230973298,3.9759,3846.2,3846.1,2.6000364]
[1761230973703,3.9759,3846.2,3845.9,2.60012513]
[1761230973906,3.9759,3846.2,3845.7,0.50688]
[1761230974108,3.9759,3846.2,3846.1,2.6000364]
[1761230974332,3.5046,3846.2,3846.1,2.6000364]
[1761230975352,0.1296,3846.2,3846.1,3.62693431]
[1761230975548,0.4713,3847.4,3846.1,0.57611791]
[1761230975749,3.8463,3847.3,3846.9,2.59946546]
[1761230975949,3.8463,3847.3,3846.8,2.59954365]
[1761230976124,0.1296,3846.9,3846.8,2.59954365]
[1761230976531,0.1296,3846.9,3846.8,2.59956327]
[1761230977033,3.8463,3846.9,3845.7,2.60030683]
[1761230977234,3.8463,3846.9,3846.6,2.59968275]
[1761230977235,3.375,3846.9,3846.6,2.59968275]
[1761230977650,3.375,3846.9,3846.6,2.59965012]
[1761230978308,0.4713,3846.8,3846.3,2.59984291]
[1761230978514,0.4713,3846.8,3846.4,2.59977849]
[1761230978724,0.4713,3846.8,3846.5,2.59974703]
[1761230978940,0.4713,3846.8,3846.4,2.59982682]
[1761230979143,0.4713,3846.8,3846.1,0.50688]
[1761230979341,0.4713,3846.8,3846.1,3.10689495]
[1761230979508,3.375,3846.9,3846.1,0.31068949]
[1761230979845,3.375,3846.9,3846.6,2.59964792]
[1761230980042,3.374,3846.8,3845.9,2.60013952]
[1761230980220,3.8453,3846.8,3845.8,0.50688]
[1761230980407,0.4713,3846.7,3845.8,0.50688]
[1761230980741,0.4713,3846.7,3846.5,2.59976481]
[1761230981913,0.4713,3846.7,3846.4,2.59978179]
[1761230982144,3.375,3846.6,3846.5,2.59976602]
[1761230984020,3.375,3846.6,3846.1,0.50688]
[1761230984350,3.375,3846.6,3846.1,2.59999063]
[1761230984523,0.4713,3846.5,3846.1,2.59999063]
[1761230984923,0.4713,3846.5,3845.6,0.60014472]
[1761230985119,3.07109339,3846.5,3845.7,2.60029969]
[1761230985320,0.4713,3846.5,3845.7,2.60028637]
[1761230985520,3.07113724,3846.4,3846.1,0.002]
[1761230985914,2.5999688,3846.2,3846.1,0.002]
[1761230986117,3.374,3846.2,3846.1,0.002]
[1761230987051,3.5036,3846.2,3846.1,0.002]
[1761230987840,3.5036,3846.2,3846.1,2.6020364]
[1761230988036,3.5036,3846.2,3846.1,0.002]
[1761230988346,0.1296,3846.2,3846.1,0.002]
[1761230988735,3.5036,3846.2,3846.1,0.002]
[1761230989149,3.9749,3846.2,3846.1,0.002]
[1761230989733,3.9741,3846.2,3846.1,0.002]
[1761230989935,3.5028,3846.2,3846.1,0.002]
[1761230990132,3.5028,3846.2,3846.1,2.6020364]
[1761230990455,0.001,3846.9,3846.3,3.1067812]
[1761230990456,0.1296,3846.4,3846.3,3.1067812]
[1761230990655,0.001,3846.9,3846.8,2.59956327]
[1761230990959,3.5046,3846.9,3846.8,2.59956327]
[1761230992150,0.1306,3846.9,3846.8,2.59956327]
[1761230992353,0.001,3846.9,3846.8,3.10644327]
[1761230992951,0.001,3846.9,3846.3,0.5764849]
[1761230993153,0.3666,3846.9,3846.8,2.59956327]
[1761230993343,3.7406,3846.9,3846.5,2.59976602]
[1761230993545,0.4713,3846.8,3846.5,2.59971699]
[1761230993732,0.1296,3846.6,3846.5,2.59976602]
[1761230995154,0.1296,3846.6,3846.5,3.17041719]
[1761230995462,3.375,3846.9,3846.6,2.59964658]
[1761230995647,3.375,3846.9,3846.7,2.59962273]
[1761230996659,4.0823,3846.9,3846.3,3.10673223]
[1761230996825,4.0823,3846.9,3846.6,2.59968857]
[1761230997751,4.0823,3846.9,3846.7,2.59962099]
[1761230997956,3.611,3846.9,3846.7,2.59962099]
[1761230998355,0.001,3846.9,3846.8,2.59956327]
[1761230998539,3.374,3846.9,3846.8,2.59956327]
[1761230999146,3.8448,3846.9,3846.7,2.599622]
[1761230999357,4.0633,3846.9,3846.7,2.599622]
[1761230999543,0.4708,3846.8,3846.7,2.599622]
[1761231000159,0.4708,3846.8,3846.5,2.59971964]
[1761231000484,0.001,3846.9,3846.8,2.59956327]
[1761231000643,3.374,3846.9,3846.8,2.59956327]
[1761231001151,4.0633,3846.9,3846.8,2.59956327]
[1761231001756,3.5925,3846.9,3846.8,2.59956327]
[1761231001958,4.0633,3846.9,3846.1,0.002]
[1761231002170,0.4708,3846.8,3846.5,2.59971564]
[1761231002471,0.4708,3846.8,3846.4,2.59983308]
[1761231002657,0.4708,3846.8,3846.1,0.002]
[1761231002970,2.5999688,3846.2,3846.1,0.002]
[1761231003186,5.9719688,3846.2,3846.1,0.002]
[1761231003364,6.4427688,3846.2,3846.1,0.002]
[1761231003567,3.8428,3846.2,3845.6,0.002]
[1761231003888,2.81880683,3845.7,3845.6,0.002]
[1761231004082,6.19080683,3845.7,3845.6,0.002]
[1761231004287,6.66160683,3845.7,3845.6,0.002]
[1761231004488,6.90392749,3845.7,3845.6,0.002]
[1761231004665,6.66160683,3845.7,3845.6,0.002]
[1761231004864,7.22103297,3845.7,3845.6,0.002]
[1761231005280,2.60044207,3845.5,3843.5,0.002]
[1761231005464,1.5552,3844.1,3843.5,0.002]
[1761231005668,2.73205985,3843.7,3843.5,0.002]
[1761231006009,0.1304,3843.7,3843.5,0.002]
[1761231006153,0.55872109,3844.2,3843.5,0.002]
[1761231006490,0.4708,3844.5,3843.6,2.60370905]
[1761231006793,2.60145785,3844.0,3843.6,0.002]
[1761231006989,0.4708,3844.5,3843.6,0.002]
[1761231006990,3.372,3843.9,3843.6,0.002]
[1761231007189,3.372,3843.8,3843.6,0.002]
[1761231007485,0.4708,3843.7,3843.6,0.002]
[1761231007838,3.372,3843.8,3843.6,0.002]
[1761231007998,0.93141993,3845.2,3843.6,2.60372297]
[1761231007999,3.372,3843.7,3843.6,2.60372297]
[1761231008154,0.4708,3844.1,3843.6,0.002]
[1761231008355,0.2185,3844.8,3844.2,2.60125831]
[1761231008576,0.2185,3844.8,3843.9,0.50688]
[1761231008785,0.2185,3844.8,3844.4,2.60114187]
[1761231008786,3.373,3844.7,3844.4,2.60114187]
[1761231009771,3.373,3844.7,3843.6,0.002]
[1761231009772,0.4708,3844.6,3843.6,0.002]
[1761231009973,2.60118614,3844.4,3843.6,0.002]
[1761231010279,3.07185261,3844.6,3843.6,0.002]
[1761231010280,3.373,3844.3,3843.6,0.002]
[1761231010582,2.60172754,3843.6,3843.5,0.002]
[1761231010786,8.00072754,3843.6,3843.5,0.002]
[1761231012104,4.62772754,3843.6,3843.5,0.002]
[1761231012278,8.00072754,3843.6,3843.5,0.002]
[1761231012615,0.4708,3844.1,3843.5,0.002]
[1761231012833,1.5552,3843.9,3843.5,0.002]
[1761231013019,2.1685,3844.8,3843.5,0.002]
[1761231013020,0.2185,3844.8,3843.5,0.002]
[1761231013180,2.60105827,3844.6,3843.7,2.60159728]
[1761231013375,1.5552,3844.6,3843.5,0.002]
[1761231013593,2.60125029,3844.4,3843.6,2.60171245]
[1761231013803,3.373,3844.3,3843.5,0.002]
[1761231014000,3.373,3844.3,3843.6,2.60172754]
[1761231014218,0.2185,3844.8,3843.5,0.002]
[1761231014219,0.6893,3844.8,3843.5,0.002]
[1761231014534,2.60110299,3844.6,3843.5,0.002]
[1761231014683,4.15633278,3844.5,3843.5,2.60377]
[1761231014887,2.6011891,3844.4,3843.5,2.60377]
[1761231015188,3.374,3844.3,3843.5,2.60377]
[1761231015395,5.975269,3844.3,3843.5,2.60377]
[1761231015610,0.4708,3844.2,3843.5,2.60377]
[1761231015806,0.4708,3844.2,3843.6,2.60171445]
[1761231016004,0.4708,3844.2,3843.5,0.002]
[1761231016212,0.4708,3844.2,3843.5,2.6037406]
[1761231016390,0.1304,3843.6,3843.5,0.002]
[1761231016590,3.5044,3843.6,3843.5,2.60379523]
[1761231016919,3.5044,3843.6,3843.5,0.002]
[1761231017416,3.9752,3843.6,3843.5,0.002]
[1761231017614,3.8448,3843.6,3843.5,0.002]
[1761231018020,3.374,3843.6,3843.5,0.002]
[1761231018988,0.4708,3845.3,3844.3,2.60120749]
[1761231019209,2.93,3844.7,3844.4,2.60117568]
[1761231019409,3.4008,3844.7,3843.5,0.002]
[1761231019617,0.4708,3844.6,3843.5,0.002]
[1761231019820,0.4708,3844.6,3844.0,2.60140877]
[1761231020218,0.4708,3844.6,3843.5,0.002]
[1761231020932,2.6012488,3844.4,3843.5,0.002]
[1761231021132,0.4708,3844.6,3843.5,0.002]
[1761231021334,2.6012027,3844.4,3843.7,2.60163956]
[1761231021534,0.4708,3844.5,3843.5,0.002]
[1761231021738,0.4708,3844.5,3844.0,2.60139324]
[1761231021939,3.374,3844.4,3844.2,2.60126133]
[1761231022111,3.374,3844.4,3843.7,0.50688]
[1761231022112,3.374,3844.4,3843.6,0.002]
[1761231022440,3.374,3844.4,3844.1,2.60137869]
[1761231022738,3.374,3844.4,3844.1,2.60134217]
[1761231022942,3.374,3844.4,3844.0,2.60144642]
[1761231023117,3.374,3844.4,3843.6,0.002]
[1761231023312,3.374,3844.4,3844.1,2.60135125]
[1761231023715,3.374,3844.4,3844.2,2.60129314]
[1761231024328,3.374,3844.4,3844.0,2.6014543]
[1761231024538,3.374,3844.4,3844.3,2.6012538]
[1761231024718,3.374,3844.4,3844.2,2.60129864]
[1761231024919,3.374,3844.4,3844.3,2.6012538]
[1761231025218,3.374,3844.4,3844.2,2.60130244]
[1761231025416,3.374,3844.4,3844.3,2.6012538]
[1761231027133,3.374,3844.4,3844.2,2.60128858]
[1761231027328,0.001,3844.7,3843.8,0.0741]
[1761231027533,0.001,3844.7,3844.6,2.60105082]
[1761231027748,0.1314,3844.7,3844.6,2.60105082]
[1761231027947,0.1314,3844.7,3844.6,3.10793082]
[1761231027948,0.001,3844.7,3844.6,3.10793082]
[1761231028149,0.001,3844.7,3844.6,3.18203082]
[1761231028370,0.001,3844.7,3844.6,3.10793082]
[1761231028523,0.001,3844.7,3844.6,0.58394956]
[1761231028827,0.6022,3844.7,3843.6,0.002]
[1761231029016,0.1304,3844.0,3843.7,2.60165985]
[1761231029215,0.1304,3844.0,3843.9,2.60152449]
[1761231029417,0.1304,3844.0,3843.9,3.10840449]
[1761231029617,1.146,3844.1,3844.0,2.60145681]
[1761231029817,1.146,3844.1,3843.7,0.1304]
[1761231030027,1.146,3844.1,3844.0,2.60145681]
[1761231030228,1.146,3844.1,3843.9,2.60151388]
[1761231030229,1.2764,3844.1,3843.9,2.60151388]
[1761231030430,1.2764,3844.1,3843.6,0.002]
[1761231030431,0.4708,3844.0,3843.6,0.002]
[1761231030624,1.6168,3844.1,3843.8,2.60154615]
[1761231030836,0.1304,3843.9,3843.8,2.60154615]
[1761231031051,0.1304,3843.9,3843.7,2.60164668]
[1761231031233,0.1304,3843.7,3843.6,0.002]
[1761231031632,0.6012,3843.7,3843.6,0.002]
[1761231032033,0.1304,3843.7,3843.6,2.60372754]
[1761231032439,0.1304,3843.7,3843.6,0.002]
[1761231032834,0.6012,3843.7,3843.6,0.002]
[1761231034326,0.4708,3843.7,3843.6,0.002]
[1761231035352,3.373,3843.8,3843.6,0.002]
[1761231035553,3.373,3843.8,3843.6,2.60366429]
[1761231035757,3.8438,3843.8,3843.6,0.002]
[1761231035959,3.374,3843.7,3843.6,0.002]
[1761231036129,3.8448,3843.7,3843.6,0.002]
[1761231036528,3.8448,3843.7,3843.6,2.60372754]
[1761231036529,3.374,3843.7,3843.6,2.60372754]
[1761231036957,3.374,3843.7,3843.6,0.002]
[1761231038556,3.844,3843.7,3843.6,0.002]
[1761231040031,3.3732,3843.7,3843.6,0.002]
[1761231040252,2.60139163,3844.1,3843.6,0.002]
[1761231040460,2.60159631,3843.8,3843.6,0.002]
[1761231040762,2.60155093,3843.9,3843.6,0.002]
[1761231040965,3.16136551,3843.8,3843.6,0.002]
[1761231041132,0.5599876,3843.7,3843.6,0.002]
[1761231041332,3.374,3843.7,3843.6,0.002]
[1761231041536,3.374,3843.7,3843.6,2.60370665]
[1761231042160,3.374,3843.7,3843.6,0.002]
[1761231042662,3.374,3843.7,3843.6,2.60372754]
[1761231043332,3.374,3843.7,3843.6,3.12448607]
[1761231044177,3.374,3843.8,3843.7,0.50688]
[1761231044549,3.374,3843.8,3843.7,3.10853985]
[1761231045075,3.374,3843.8,3843.7,2.60165985]
[1761231045273,3.5044,3843.8,3843.6,0.002]
[1761231045654,3.5044,3843.8,3843.7,2.60165985]
[1761231046478,3.5044,3843.8,3843.6,0.002]
[1761231046647,3.9752,3843.8,3843.6,2.60371334]
[1761231047677,3.5044,3843.8,3843.6,2.60371334]
[1761231047861,3.5044,3843.8,3843.7,2.60165985]
[1761231048462,3.5044,3843.8,3843.6,0.002]
[1761231048956,0.4708,3843.7,3843.6,0.002]
[1761231049973,3.30082705,3844.3,3843.6,0.002]
[1761231049974,0.69956494,3844.3,3843.6,0.002]
[1761231050181,0.1304,3843.7,3843.6,0.002]
[1761231050389,3.5044,3843.7,3843.6,2.60372754]
[1761231050579,3.5044,3843.7,3843.6,0.002]
[1761231050876,3.5044,3843.7,3843.6,2.60372754]
[1761231053679,0.1304,3843.7,3843.6,2.60372754]
[1761231053884,3.5044,3843.7,3843.6,2.60372754]
[1761231054178,3.374,3843.7,3843.6,2.60372754]
[1761231054404,3.374,3843.7,3843.6,3.19858106]
[1761231054553,3.374,3843.7,3843.6,2.60372754]
[1761231055153,0.1304,3843.8,3843.7,2.60165985]
[1761231055361,3.5034,3843.8,3843.7,2.60165985]
[1761231055683,3.9742,3843.8,3843.7,2.60165985]
[1761231055989,3.9742,3843.8,3843.6,0.002]
[1761231056178,3.9742,3843.8,3843.6,2.60366802]
[1761231056357,3.9742,3843.8,3843.7,2.60165985]
[1761231057380,3.9742,3843.8,3843.6,0.002]
[1761231057584,3.9742,3843.8,3843.6,2.60370188]
[1761231057772,3.9742,3843.8,3843.7,2.60165985]
[1761231058288,3.9742,3843.8,3843.6,2.60369945]
[1761231058488,3.9742,3843.8,3843.7,2.60165985]
[1761231058896,3.9742,3843.8,3843.6,2.60370395]
[1761231060193,3.5034,3843.8,3843.6,0.002]
[1761231060419,0.4465,3843.7,3843.6,0.002]
[1761231060984,1.00709115,3843.7,3843.6,0.002]
[1761231061184,1.00709115,3843.7,3843.5,0.002]
[1761231061185,2.60172754,3843.6,3843.5,0.002]
[1761231061386,4.15713063,3843.3,3843.2,0.002]
[1761231061589,2.60220146,3842.9,3841.6,2.60307324]
[1761231061777,2.60220146,3842.9,3840.9,2.60354355]
[1761231061778,5.48879115,3842.8,3841.4,2.6032117]
[1761231061979,0.69856494,3842.5,3840.8,0.0861]
[1761231062182,6.53615405,3842.4,3841.4,2.60320865]
[1761231062499,3.16318783,3842.3,3841.4,2.60315043]
[1761231062701,3.16325139,3842.2,3841.5,2.60313769]
[1761231063001,2.60212411,3841.9,3841.1,2.60339906]
[1761231063206,3.373,3841.8,3841.0,2.60348867]
[1761231063367,3.373,3841.8,3841.4,2.60317011]
[1761231063570,0.4465,3841.7,3840.8,0.0861]
[1761231063773,0.4465,3841.7,3840.5,2.60382762]
[1761231064005,2.60327105,3841.4,3840.5,2.60377519]
[1761231064204,3.373,3841.3,3839.7,0.0861]
[1761231064512,3.373,3841.3,3839.5,3.0]
[1761231064513,2.60342743,3841.1,3839.5,3.0]
[1761231064680,3.068,3841.0,3839.8,2.6043023]
[1761231065007,3.068,3841.0,3840.6,2.60371004]
[1761231065210,3.068,3841.0,3839.9,2.60418368]
[1761231065211,3.068,3841.0,3840.0,2.60416666]
[1761231065411,3.068,3841.0,3839.6,2.09302731]
[1761231065412,0.6616,3840.9,3839.6,0.53782731]
[1761231065621,2.60409026,3840.2,3839.6,0.53782731]
[1761231065785,5.9781093,3840.1,3839.5,0.002]
[1761231065986,3.374,3840.0,3839.5,0.002]
[1761231066281,3.374,3839.9,3839.5,0.002]
[1761231066611,3.374,3839.8,3839.5,0.002]
[1761231066816,3.8205,3839.8,3839.5,0.002]
[1761231067018,0.4465,3839.7,3839.5,0.002]
[1761231067517,0.4465,3840.7,3839.5,0.002]
[1761231067719,3.374,3840.6,3839.7,2.60437013]
[1761231068019,3.374,3840.6,3840.2,2.60402683]
[1761231068533,0.4465,3840.5,3839.7,2.60437013]
[1761231068700,3.374,3840.6,3839.6,2.60443796]
[1761231069023,3.374,3840.6,3839.5,0.002]
[1761231069024,3.8205,3840.6,3840.1,2.60408582]
[1761231069217,3.8205,3840.6,3839.5,0.002]
[1761231069218,3.8205,3840.6,3840.3,2.6039461]
[1761231069421,3.8205,3840.6,3839.5,0.002]
[1761231070023,0.4465,3840.5,3839.7,2.6043361]
[1761231070321,0.4465,3840.5,3839.6,2.60443796]
[1761231070493,3.374,3840.6,3839.6,2.60443796]
[1761231070494,0.2151,3840.9,3839.6,0.50688]
[1761231070692,0.2151,3840.9,3840.4,2.60383638]
[1761231070693,0.628,3840.8,3840.4,2.60383638]
[1761231070893,1.0745,3840.8,3840.5,2.60379278]
[1761231071294,0.1304,3840.6,3840.5,2.60379278]
[1761231071796,3.5054,3840.6,3840.0,0.50688]
[1761231072021,3.375,3840.6,3840.4,2.60388784]
[1761231072229,0.1304,3840.2,3840.1,3.11097885]
[1761231072427,0.1304,3840.2,3840.1,3.11297885]
[1761231073426,0.1304,3840.2,3840.1,0.002]
[1761231073825,0.5769,3840.2,3840.1,0.002]
[1761231074030,0.2151,3840.9,3840.1,0.002]